bitfinex-derivatives/quotes_BTCF0:USTF0_20251110
["timestamp","ask_amount","ask_price","bid_price","bid_amount"]
[1762788198520,0.00234049,105390.0,105380.0,0.151768]
[1762788198716,0.21578306,105390.0,105380.0,0.151768]
[1762788199022,0.23844306,105390.0,105380.0,0.151768]
[1762788199420,0.14353406,105390.0,105380.0,0.151768]
[1762788199926,0.23844306,105390.0,105380.0,0.151768]
[1762788200115,0.02500049,105390.0,105380.0,0.151768]
[1762788200317,0.23796306,105390.0,105380.0,0.151768]
[1762788200526,0.25996306,105390.0,105380.0,0.151768]
[1762788200918,0.26096306,105390.0,105380.0,0.151768]
[1762788201118,0.14242949,105390.0,105380.0,0.151768]
[1762788201423,0.00114246,105390.0,105380.0,0.389008]
[1762788202214,0.00114246,105390.0,105380.0,0.151768]
[1762788202427,0.00114246,105390.0,105380.0,0.389008]
[1762788203120,0.00114246,105390.0,105380.0,0.151768]
[1762788203323,0.00114246,105390.0,105380.0,0.27030157]
[1762788203623,0.00114246,105390.0,105380.0,0.50754157]
[1762788204425,0.0948782,105430.0,105420.0,0.151612]
[1762788204426,0.04418,105430.0,105420.0,0.151612]
[1762788204625,0.2597846,105430.0,105420.0,0.04374]
[1762788204925,0.1390682,105420.0,105410.0,0.04374]
[1762788205224,0.1207316,105420.0,105410.0,0.138631]
[1762788205422,0.25759277,105430.0,105420.0,0.05673]
[1762788205617,0.117071,105410.0,105400.0,0.22642899]
[1762788205817,0.11926903,105410.0,105400.0,0.22642899]
[1762788206022,0.02437803,105410.0,105400.0,0.22642899]
[1762788206225,0.00219803,105410.0,105400.0,0.22642899]
[1762788206419,0.09708903,105410.0,105400.0,0.22642899]
[1762788206825,0.00219803,105410.0,105400.0,0.22642899]
[1762788207025,0.26258657,105430.0,105420.0,0.151612]
[1762788207326,0.09707103,105430.0,105420.0,0.151612]
[1762788207523,0.11925103,105430.0,105420.0,0.05673]
[1762788207723,0.2377846,105430.0,105420.0,0.05673]
[1762788208015,0.2377846,105430.0,105400.0,0.30222256]
[1762788208016,0.139071,105410.0,105400.0,0.00114246]
[1762788208223,0.02437803,105410.0,105400.0,0.05787246]
[1762788208427,0.1390648,105420.0,105410.0,0.04374]
[1762788208728,0.2597964,105420.0,105410.0,0.04374]
[1762788209126,0.139071,105410.0,105400.0,0.05687246]
[1762788209329,0.2598026,105410.0,105400.0,0.05687246]
[1762788209627,0.2598026,105410.0,105400.0,0.15177246]
[1762788210125,0.1649116,105410.0,105400.0,0.15177246]
[1762788210330,0.09708903,105410.0,105400.0,0.15177246]
[1762788210734,0.1207316,105410.0,105400.0,0.15177246]
[1762788211223,0.1207316,105410.0,105400.0,0.15277246]
[1762788211424,0.1207316,105410.0,105400.0,0.22846884]
[1762788211721,0.2156226,105410.0,105400.0,0.22846884]
[1762788211928,0.2598026,105410.0,105400.0,0.22846884]
[1762788213231,0.1649116,105410.0,105400.0,0.22846884]
[1762788213426,0.1429116,105410.0,105400.0,0.22846884]
[1762788213828,0.2378026,105410.0,105400.0,0.22846884]
[1762788214228,0.2598026,105410.0,105400.0,0.22846884]
[1762788214429,0.1649116,105410.0,105400.0,0.22846884]
[1762788214623,0.00219803,105410.0,105400.0,0.22846884]
[1762788214930,0.117064,105420.0,105410.0,0.1386259]
[1762788215133,0.11926203,105420.0,105410.0,0.1386259]
[1762788215332,0.05974803,105420.0,105410.0,0.1386255]
[1762788215826,0.2731636,105420.0,105410.0,0.1386255]
[1762788216123,0.22677377,105440.0,105430.0,0.138613]
[1762788216124,0.24894767,105440.0,105430.0,0.138613]
[1762788216329,0.1782816,105440.0,105430.0,0.138613]
[1762788216527,0.05974803,105440.0,105430.0,0.138613]
[1762788216727,0.13941463,105450.0,105440.0,0.04374]
[1762788216933,0.26014623,105450.0,105440.0,0.04374]
[1762788217121,0.01337,105440.0,105420.0,0.20659603]
[1762788217324,0.05974803,105440.0,105430.0,0.1386131]
[1762788217522,0.2731457,105440.0,105430.0,0.1386131]
[1762788217726,0.2731457,105440.0,105430.0,0.0948731]
[1762788218125,0.1782816,105440.0,105430.0,0.1386131]
[1762788218533,0.2731457,105440.0,105430.0,0.02231]
[1762788218735,0.139053,105430.0,105420.0,0.04388246]
[1762788218933,0.139053,105430.0,105420.0,0.09502446]
[1762788218934,0.2597846,105430.0,105420.0,0.09502446]
[1762788219832,0.2597846,105430.0,105420.0,0.00014246]
[1762788220021,0.2597846,105430.0,105420.0,0.00114246]
[1762788220228,0.1649116,105430.0,105420.0,0.11833446]
[1762788220426,0.00219803,105430.0,105420.0,0.25829803]
[1762788220630,0.00219803,105430.0,105420.0,0.13976446]
[1762788220829,0.04637803,105430.0,105420.0,0.13976446]
[1762788221132,0.23774097,105430.0,105420.0,0.20980076]
[1762788221332,0.16271357,105430.0,105420.0,0.14196249]
[1762788221534,0.16271357,105430.0,105420.0,0.04708049]
[1762788221736,0.27094787,105440.0,105430.0,0.1386131]
[1762788221936,0.27094787,105440.0,105430.0,0.14081113]
[1762788222540,0.17608357,105440.0,105430.0,0.14081113]
[1762788222741,0.16271357,105440.0,105430.0,0.14081113]
[1762788223040,0.25757757,105440.0,105430.0,0.14081113]
[1762788223237,0.152414,105440.0,105430.0,0.04593803]
[1762788223547,0.27094757,105440.0,105430.0,0.04593803]
[1762788223832,0.27094757,105440.0,105430.0,0.14081103]
[1762788224239,0.17608357,105440.0,105430.0,0.14081103]
[1762788224439,0.25757757,105440.0,105430.0,0.14081103]
[1762788224641,0.27094757,105440.0,105430.0,0.14081103]
[1762788224842,0.27094757,105440.0,105430.0,0.00219803]
[1762788225026,0.11853357,105440.0,105430.0,0.14081103]
[1762788225529,0.2579541,105450.0,105440.0,0.138604]
[1762788225724,0.2579541,105450.0,105440.0,0.14080203]
[1762788225935,0.2579541,105450.0,105440.0,0.02450803]
[1762788226131,0.2579541,105450.0,105440.0,0.11937203]
[1762788226436,0.2579541,105450.0,105440.0,0.10671892]
[1762788226635,0.2579541,105450.0,105440.0,0.01185492]
[1762788227544,0.2589541,105450.0,105440.0,0.01185492]
[1762788229845,0.2589541,105450.0,105440.0,0.00219803]
[1762788230041,0.04392,105430.0,105420.0,0.13851636]
[1762788230237,0.17461357,105440.0,105430.0,0.138843]
[1762788230544,0.25685757,105440.0,105430.0,0.14104103]
[1762788231443,0.26947757,105440.0,105430.0,0.14104103]
[1762788231739,0.25685757,105440.0,105430.0,0.1920724]
[1762788231945,0.2572341,105450.0,105440.0,0.138834]
[1762788232135,0.2572341,105450.0,105440.0,0.1920634]
[1762788233238,0.23445848,105450.0,105440.0,0.1920634]
[1762788233444,0.23445848,105450.0,105440.0,0.19208549]
[1762788233944,0.04346,105450.0,105440.0,0.20538549]
[1762788234337,0.04346,105450.0,105440.0,0.15433203]
[1762788234538,0.139315,105450.0,105440.0,0.15433203]
[1762788234737,0.25784857,105450.0,105440.0,0.15433203]
[1762788234935,0.25784857,105450.0,105440.0,0.20539028]
[1762788235342,0.25684857,105450.0,105440.0,0.15433203]
[1762788235843,0.25684857,105450.0,105440.0,0.14103203]
[1762788236639,0.25684857,105450.0,105440.0,0.04616803]
[1762788236844,0.25684857,105450.0,105440.0,0.07603129]
[1762788237032,0.25684857,105450.0,105440.0,0.05105559]
[1762788237231,0.25684857,105450.0,105440.0,0.05325362]
[1762788238936,0.31162886,105450.0,105440.0,0.05325362]
[1762788239136,0.138643,105430.0,105420.0,0.00967005]
[1762788239340,0.31415486,105430.0,105420.0,0.12418898]
[1762788239539,0.31415486,105430.0,105420.0,0.21907098]
[1762788240346,0.140841,105430.0,105420.0,0.22007098]
[1762788240544,0.31415486,105430.0,105420.0,0.10201898]
[1762788240746,0.140841,105430.0,105420.0,0.12518898]
[1762788241051,0.31415486,105430.0,105420.0,0.07949898]
[1762788241245,0.31415486,105430.0,105420.0,0.00114246]
[1762788241438,0.138661,105410.0,105400.0,0.14379262]
[1762788241747,0.31417286,105410.0,105400.0,0.28511531]
[1762788241943,0.31417286,105410.0,105400.0,0.29473269]
[1762788242748,0.045968,105410.0,105400.0,0.23387631]
[1762788243047,0.045968,105410.0,105400.0,0.23487631]
[1762788243442,0.045968,105410.0,105400.0,0.16678007]
[1762788243943,0.045968,105410.0,105400.0,0.23490647]
[1762788245146,0.045968,105410.0,105400.0,0.3090241]
[1762788245350,0.140859,105410.0,105400.0,0.3090241]
[1762788246153,0.31417286,105410.0,105400.0,0.2961841]
[1762788246445,0.31417286,105410.0,105400.0,0.2012841]
[1762788246651,0.31417286,105410.0,105400.0,0.19888905]
[1762788247050,0.31417286,105410.0,105400.0,0.08146905]
[1762788247248,0.31417286,105410.0,105400.0,0.01335007]
[1762788247648,0.31417286,105410.0,105400.0,0.00373269]
[1762788247949,0.31417286,105410.0,105390.0,0.07763923]
[1762788247950,0.15092,105400.0,105390.0,0.07763923]
[1762788248154,0.32643186,105400.0,105390.0,0.01025294]
[1762788248450,0.140868,105400.0,105390.0,0.15085194]
[1762788248648,0.002198,105400.0,105390.0,0.15085194]
[1762788248855,0.002198,105400.0,105390.0,0.20959313]
[1762788249348,0.32692186,105400.0,105390.0,0.30554495]
[1762788249541,0.32692186,105400.0,105390.0,0.22080074]
[1762788249745,0.32692186,105400.0,105390.0,0.01215087]
[1762788250653,0.32692186,105400.0,105390.0,0.10705987]
[1762788250953,0.32692186,105400.0,105390.0,0.01515087]
[1762788251349,0.32692186,105400.0,105390.0,0.11005987]
[1762788251548,0.32692186,105400.0,105390.0,0.13257987]
[1762788252653,0.045968,105400.0,105390.0,0.15574987]
[1762788253151,0.0948958,105410.0,105390.0,0.15574987]
[1762788253359,0.13879446,105420.0,105410.0,0.140581]
[1762788253561,0.32704632,105420.0,105410.0,0.14131369]
[1762788254051,0.32704632,105420.0,105410.0,0.00073269]
[1762788254452,0.1159453,105410.0,105400.0,0.153426]
[1762788254654,0.045968,105410.0,105400.0,0.15415869]
[1762788255349,0.00014246,105420.0,105400.0,0.15415869]
[1762788255659,0.04611046,105420.0,105410.0,0.140581]
[1762788255957,0.15373246,105420.0,105410.0,0.14131369]
[1762788256156,0.15373246,105420.0,105410.0,0.20936456]
[1762788256460,0.00234046,105420.0,105410.0,0.14131369]
[1762788256951,0.00234046,105420.0,105410.0,0.14231369]
[1762788257145,0.00234046,105420.0,105410.0,0.21036456]
[1762788257346,0.09722246,105420.0,105410.0,0.21036456]
[1762788257550,0.11994246,105420.0,105410.0,0.21036456]
[1762788257757,0.04611046,105420.0,105410.0,0.21036456]
[1762788257946,0.04611046,105420.0,105410.0,0.29029853]
[1762788258346,0.00014246,105420.0,105410.0,0.22224766]
[1762788258551,0.00014246,105420.0,105410.0,0.29029853]
[1762788259252,0.00014246,105420.0,105410.0,0.29229853]
[1762788259856,0.00014246,105420.0,105410.0,0.28929853]
[1762788260157,0.00014246,105420.0,105410.0,0.29329853]
[1762788260356,0.00014246,105420.0,105410.0,0.22224766]
[1762788260559,0.00014246,105420.0,105410.0,0.22524766]
[1762788261454,0.32501386,105460.0,105450.0,0.140025]
[1762788261661,0.32721186,105460.0,105450.0,0.09688841]
[1762788261960,0.153898,105460.0,105450.0,0.19173932]
[1762788262154,0.153898,105460.0,105450.0,0.14075769]
[1762788262351,0.32721186,105460.0,105450.0,0.07474842]
[1762788262553,0.32721186,105460.0,105450.0,0.05170842]
[1762788262756,0.32721186,105460.0,105450.0,0.05097573]
[1762788263157,0.32821186,105460.0,105450.0,0.05097573]
[1762788263554,0.154898,105460.0,105450.0,0.05097573]
[1762788263757,0.138415,105450.0,105440.0,0.05111819]
[1762788264057,0.31392686,105450.0,105440.0,0.05185088]
[1762788264267,0.31392686,105450.0,105440.0,0.05111819]
[1762788264452,0.31392686,105450.0,105440.0,0.05185088]
[1762788264659,0.31392686,105450.0,105440.0,0.14671488]
[1762788264856,0.140613,105450.0,105440.0,0.20567488]
[1762788265055,0.31392686,105450.0,105440.0,0.20567488]
[1762788265562,0.31392686,105450.0,105440.0,0.15469915]
[1762788265761,0.31392686,105450.0,105440.0,0.22268011]
[1762788265954,0.31392686,105450.0,105440.0,0.20889011]
[1762788266360,0.31392686,105450.0,105440.0,0.14090915]
[1762788267265,0.31392686,105450.0,105440.0,0.02391515]
[1762788267465,0.31392686,105450.0,105440.0,0.11877915]
[1762788268162,0.31392686,105450.0,105440.0,0.14090915]
[1762788268472,0.31392686,105450.0,105440.0,0.00087515]
[1762788268965,0.31392686,105450.0,105440.0,0.05113568]
[1762788269355,0.31392686,105450.0,105440.0,0.01613568]
[1762788269863,0.138433,105430.0,105420.0,0.06798096]
[1762788270063,0.31394486,105430.0,105420.0,0.22255565]
[1762788270365,0.31394486,105430.0,105420.0,0.12767365]
[1762788270871,0.31394486,105430.0,105420.0,0.20042565]
[1762788271164,0.31394486,105430.0,105420.0,0.22255575]
[1762788271554,0.31394486,105430.0,105420.0,0.22355575]
[1762788272461,0.31394486,105430.0,105420.0,0.22455575]
[1762788272964,0.045758,105430.0,105420.0,0.22455575]
[1762788273166,0.17551186,105430.0,105420.0,0.22455575]
[1762788273371,0.094882,105420.0,105410.0,0.08488667]
[1762788273564,0.27039389,105420.0,105410.0,0.00014246]
[1762788273862,0.0949091,105390.0,105380.0,0.01284]
[1762788274059,0.27042099,105390.0,105380.0,0.01284]
[1762788274256,0.27042099,105390.0,105380.0,0.05801]
[1762788274462,0.27042099,105390.0,105380.0,0.01284]
[1762788274864,0.094918,105380.0,105370.0,0.00014246]
[1762788275065,0.094918,105380.0,105360.0,0.01379]
[1762788275066,0.094927,105370.0,105360.0,0.01379]
[1762788275373,0.27043889,105370.0,105360.0,0.01379]
[1762788276361,0.0949361,105360.0,105350.0,0.00959446]
[1762788276563,0.27044799,105360.0,105350.0,0.00959446]
[1762788277062,0.27044799,105360.0,105350.0,0.00014246]
[1762788277466,0.0949541,105340.0,105330.0,9.997e-05]
[1762788277770,0.27046599,105340.0,105330.0,9.997e-05]
[1762788279073,0.27046599,105340.0,105330.0,0.00209997]
[1762788279767,0.27046599,105340.0,105330.0,9.997e-05]
[1762788280563,0.27046599,105340.0,105330.0,0.00409997]
[1762788281170,0.00219803,105340.0,105330.0,0.14423307]
[1762788281370,0.00014246,105350.0,105330.0,0.14423307]
[1762788281371,0.00014246,105350.0,105340.0,0.1539141]
[1762788281577,0.26823946,105380.0,105370.0,0.1400971]
[1762788281774,0.27043749,105380.0,105370.0,0.04517]
[1762788283574,0.27043749,105380.0,105370.0,0.04617]
[1762788284373,0.27043749,105380.0,105370.0,0.1410971]
[1762788284772,0.00219803,105380.0,105370.0,0.1410971]
[1762788285273,0.09711603,105380.0,105370.0,0.140097]
[1762788285471,0.27042989,105380.0,105370.0,0.04517]
[1762788285672,0.27042989,105380.0,105360.0,0.05910246]
[1762788285673,0.094927,105370.0,105360.0,0.05910246]
[1762788285875,0.27043889,105370.0,105360.0,0.15403856]
[1762788287671,0.27043889,105370.0,105360.0,0.15503856]
[1762788288472,0.00219803,105370.0,105360.0,0.15503856]
[1762788288669,0.00219803,105370.0,105360.0,0.15703856]
[1762788288872,0.26837172,105390.0,105380.0,0.152768]
[1762788289177,0.00234049,105390.0,105380.0,0.152768]
[1762788289368,0.09724949,105390.0,105380.0,0.152768]
[1762788290378,0.27056335,105390.0,105380.0,0.152768]
[1762788291168,0.27056335,105390.0,105380.0,0.154768]
[1762788291367,0.17565435,105390.0,105380.0,0.154768]
[1762788291574,0.00234049,105390.0,105380.0,0.154768]
[1762788291766,0.00234049,105390.0,105380.0,0.155768]
[1762788292370,0.00014246,105390.0,105380.0,0.155768]
[1762788292978,0.00014246,105390.0,105380.0,0.152768]
[1762788293174,0.00014246,105390.0,105380.0,0.154768]
[1762788293781,0.27056335,105390.0,105380.0,0.153768]
[1762788294080,0.27056335,105390.0,105380.0,0.06085]
[1762788294377,0.27056335,105390.0,105380.0,0.155768]
[1762788295072,0.26910836,105390.0,105380.0,0.154768]
[1762788295272,0.26910836,105390.0,105380.0,0.155768]
[1762788295579,0.26910836,105390.0,105380.0,0.154768]
[1762788295874,0.26910836,105390.0,105380.0,0.155768]
[1762788296376,0.26910836,105390.0,105380.0,0.153768]
[1762788296566,0.26910836,105390.0,105380.0,0.154768]
[1762788297565,0.17551189,105390.0,105380.0,0.154768]
[1762788297770,0.00219803,105390.0,105380.0,0.154768]
[1762788297971,0.00014246,105400.0,105390.0,0.1396891]
[1762788298871,0.09724059,105400.0,105390.0,0.1396891]
[1762788299477,0.00234049,105400.0,105390.0,0.1396891]
[1762788299978,0.27055445,105400.0,105390.0,0.04478]
[1762788300279,0.0949091,105390.0,105380.0,0.05871246]
[1762788300474,0.27042099,105390.0,105380.0,0.05871246]
[1762788300680,0.27042099,105390.0,105380.0,0.05771246]
[1762788300880,0.21539879,105390.0,105380.0,0.05771246]
[1762788301082,0.21539879,105390.0,105380.0,0.15263056]
[1762788301581,0.21539879,105390.0,105380.0,0.05871246]
[1762788301772,0.21539879,105390.0,105380.0,0.15363056]
[1762788301970,0.12048969,105390.0,105380.0,0.15363056]
[1762788302277,0.00014246,105400.0,105390.0,0.04478]
[1762788302480,0.12063215,105400.0,105390.0,0.1396891]
[1762788302679,0.00234049,105400.0,105390.0,0.1396891]
[1762788302883,0.0948768,105430.0,105420.0,0.1523151]
[1762788303078,0.00219803,105430.0,105420.0,0.1523151]
[1762788303475,0.0948609,105450.0,105440.0,0.05744]
[1762788303676,0.21535059,105450.0,105440.0,0.05744]
[1762788303881,0.21535059,105450.0,105440.0,0.1523041]
[1762788304185,0.09705893,105450.0,105440.0,0.05744]
[1762788304377,0.21535059,105450.0,105440.0,0.05744]
[1762788305086,0.21535059,105450.0,105440.0,0.01266]
[1762788306078,0.33764225,105450.0,105440.0,0.01266]
[1762788306388,0.22235059,105450.0,105440.0,0.01266]
[1762788307481,0.0948221,105490.0,105480.0,0.01266]
[1762788307782,0.11978318,105490.0,105480.0,0.15370728]
[1762788307975,0.00149152,105490.0,105480.0,0.15370728]
[1762788308180,0.00149152,105490.0,105480.0,0.05887918]
[1762788308181,0.21460228,105490.0,105480.0,0.05887918]
[1762788308492,0.11978318,105490.0,105480.0,0.15370728]
[1762788308693,0.21460228,105490.0,105480.0,0.15370728]
[1762788308987,0.21760228,105490.0,105480.0,0.15370728]
[1762788309893,0.22260228,105490.0,105480.0,0.15370728]
[1762788311686,0.21760228,105490.0,105480.0,0.15370728]
[1762788311986,0.21960228,105490.0,105480.0,0.15370728]
[1762788312175,0.21960228,105490.0,105480.0,0.05887918]
[1762788312782,0.21960228,105490.0,105480.0,0.15370728]
[1762788313189,0.10131062,105490.0,105480.0,0.15370728]
[1762788313389,0.21960228,105490.0,105480.0,0.15370728]
[1762788314290,0.10131062,105490.0,105480.0,0.15370728]
[1762788314483,0.21960228,105490.0,105480.0,0.15370728]
[1762788318988,0.00649152,105490.0,105480.0,0.15370728]
[1762788319188,0.21960228,105490.0,105480.0,0.15370728]
[1762788319383,0.21960228,105490.0,105480.0,0.05887918]
[1762788322086,0.21960228,105490.0,105480.0,0.15370728]
[1762788322488,0.21960228,105490.0,105480.0,0.05887918]
[1762788322683,0.21960228,105490.0,105480.0,0.15370728]
[1762788322892,0.21960228,105490.0,105480.0,0.05887918]
[1762788323099,0.21960228,105490.0,105480.0,0.15370728]
[1762788323794,0.21960228,105490.0,105480.0,0.05887918]
[1762788325088,0.0312,105480.0,105470.0,0.00014246]
[1762788325298,0.36480945,105480.0,105470.0,0.00014246]
[1762788325600,0.24651779,105480.0,105470.0,0.04503246]
[1762788325799,0.23091779,105480.0,105470.0,0.13986956]
[1762788325990,0.21531779,105480.0,105470.0,0.13986956]
[1762788327102,0.24651779,105480.0,105470.0,0.13986956]
[1762788327902,0.09702613,105480.0,105470.0,0.13986956]
[1762788328201,0.00219803,105480.0,105470.0,0.13986956]
[1762788328405,0.12048969,105480.0,105470.0,0.13986956]
[1762788329096,0.23091779,105480.0,105470.0,0.13986956]
[1762788329297,0.24651779,105480.0,105470.0,0.13986946]
[1762788329689,0.24651779,105480.0,105470.0,0.04503246]
[1762788329891,0.36480945,105480.0,105470.0,0.00014246]
[1762788330100,0.24851779,105480.0,105470.0,0.00014246]
[1762788330302,0.24851779,105480.0,105470.0,0.13986946]
[1762788331405,0.23291779,105480.0,105470.0,0.13986946]
[1762788331601,0.12248969,105480.0,105470.0,0.13986946]
[1762788331795,0.21731779,105480.0,105470.0,0.13986946]
[1762788331995,0.24851779,105480.0,105470.0,0.13986946]
[1762788332192,0.36680945,105480.0,105470.0,0.04503246]
[1762788332392,0.36680945,105480.0,105470.0,0.00014246]
[1762788334698,0.34477044,105480.0,105470.0,0.00160781]
[1762788335800,0.34477044,105480.0,105470.0,0.02442781]
[1762788336000,0.34477044,105480.0,105470.0,0.00160781]
[1762788337595,0.13231298,105480.0,105470.0,0.14133481]
[1762788337811,0.15022433,105480.0,105470.0,0.14133481]
[1762788338110,0.24505243,105480.0,105470.0,0.14133481]
[1762788338300,0.15022433,105480.0,105470.0,0.14133481]
[1762788338609,0.24505243,105480.0,105470.0,0.14133481]
[1762788338811,0.24505243,105480.0,105470.0,0.04649781]
[1762788339208,0.24505243,105480.0,105470.0,0.00160781]
[1762788339404,0.36334409,105480.0,105470.0,0.00160781]
[1762788339708,0.24505243,105480.0,105470.0,0.09644481]
[1762788340709,0.24505243,105480.0,105470.0,0.00160781]
[1762788340903,0.36334409,105480.0,105470.0,0.00160781]
[1762788341099,0.0312,105450.0,105440.0,0.198786]
[1762788341300,0.24654466,105450.0,105440.0,0.00073269]
[1762788341501,0.24654466,105450.0,105420.0,0.24699967]
[1762788341502,0.126073,105430.0,105420.0,0.08953377]
[1762788341709,0.24656266,105430.0,105420.0,0.00073269]
[1762788341906,0.126082,105420.0,105410.0,7.949e-05]
[1762788342103,0.24657166,105420.0,105410.0,7.949e-05]
[1762788342307,0.25437166,105420.0,105410.0,7.949e-05]
[1762788343509,0.12828,105420.0,105410.0,0.04570218]
[1762788343710,0.24657166,105420.0,105410.0,0.14059318]
[1762788344312,0.15168966,105420.0,105410.0,0.14992426]
[1762788344509,0.12048966,105420.0,105410.0,0.14992426]
[1762788344709,0.13608966,105420.0,105410.0,0.14992426]
[1762788344909,0.12048966,105420.0,105410.0,0.14992426]
[1762788346215,0.12048966,105420.0,105410.0,0.15092426]
[1762788346411,0.00014246,105430.0,105410.0,0.15092426]
[1762788346610,0.00014246,105430.0,105420.0,0.153242]
[1762788346811,0.00014246,105430.0,105420.0,0.39109469]
[1762788347012,0.00234046,105430.0,105420.0,0.22145879]
[1762788347316,0.12063212,105430.0,105420.0,0.22145879]
[1762788347711,0.00014246,105430.0,105420.0,0.15397469]
[1762788347911,0.11829166,105450.0,105440.0,0.153224]
[1762788348111,0.11829166,105450.0,105440.0,0.15395669]
[1762788348112,0.002198,105450.0,105440.0,0.15395669]
[1762788348612,0.21534466,105450.0,105440.0,0.15395669]
[1762788349216,0.12048966,105450.0,105440.0,0.15395669]
[1762788349719,0.24654466,105450.0,105440.0,0.06009269]
[1762788350020,0.15168966,105450.0,105440.0,0.15495669]
[1762788350217,0.24654466,105450.0,105440.0,0.15495669]
[1762788350715,0.24654466,105450.0,105440.0,0.00173269]
[1762788351421,0.22376738,105450.0,105440.0,0.00273269]
[1762788351620,0.36263832,105450.0,105440.0,0.002]
[1762788352220,0.36064732,105440.0,105430.0,0.00014246]
[1762788352615,0.122082,105420.0,105410.0,0.00941057]
[1762788352812,0.24037366,105420.0,105410.0,0.0116086]
[1762788354322,0.24037366,105420.0,105410.0,0.0126086]
[1762788354623,0.24037366,105420.0,105410.0,0.00327752]
[1762788354824,0.24037366,105420.0,105410.0,0.01262382]
[1762788355020,0.24037366,105420.0,105410.0,0.00327752]
[1762788355322,0.24037366,105420.0,105410.0,0.00427752]
[1762788355919,0.24037366,105420.0,105410.0,0.00327752]
[1762788356423,0.24037366,105420.0,105410.0,0.00227752]
[1762788356623,0.24037366,105420.0,105410.0,0.00327752]
[1762788357219,0.24037366,105420.0,105410.0,0.14369852]
[1762788357417,0.24037366,105420.0,105410.0,0.15236608]
[1762788357615,0.24037366,105420.0,105410.0,0.15336608]
[1762788360514,0.00014246,105430.0,105420.0,0.153502]
[1762788360826,0.24050712,105430.0,105420.0,0.00219803]
[1762788362425,0.122082,105420.0,105410.0,0.00974705]
[1762788362619,0.24037366,105420.0,105410.0,0.01194508]
[1762788363123,0.29548439,105420.0,105410.0,0.01194508]
[1762788363825,0.29548439,105420.0,105410.0,0.01294508]
[1762788364321,0.30128439,105420.0,105410.0,0.00107949]
[1762788364923,0.122091,105410.0,105400.0,0.00014246]
[1762788365227,0.29549339,105410.0,105400.0,0.00014246]
[1762788365625,0.0272,105410.0,105400.0,0.15586049]
[1762788365827,0.01368204,105410.0,105400.0,0.15586049]
[1762788366132,8.204e-05,105410.0,105400.0,0.16521254]
[1762788366711,0.01368204,105410.0,105400.0,0.16521254]
[1762788366922,8.204e-05,105410.0,105400.0,0.16521254]
[1762788367118,0.20068443,105410.0,105400.0,0.07031254]
[1762788367321,0.29557543,105410.0,105400.0,0.07031254]
[1762788367527,0.29557543,105410.0,105400.0,0.05158254]
[1762788368113,0.29557543,105410.0,105400.0,0.00634049]
[1762788368314,0.29557543,105410.0,105400.0,0.00214246]
[1762788368515,0.0272,105380.0,105370.0,0.1127641]
[1762788368720,0.0272,105380.0,105370.0,0.01156244]
[1762788368721,0.29560465,105380.0,105370.0,0.01156244]
[1762788368919,0.12220226,105380.0,105370.0,0.00219803]
[1762788369119,0.29560465,105380.0,105370.0,0.00219803]
[1762788369317,0.01368426,105380.0,105370.0,0.14240513]
[1762788369621,8.426e-05,105380.0,105370.0,0.14240513]
[1762788369824,0.0272,105410.0,105400.0,0.15352]
[1762788370123,0.17340239,105420.0,105410.0,0.1401682]
[1762788370124,0.20060239,105420.0,105410.0,0.1401682]
[1762788370326,0.20060239,105420.0,105410.0,0.14236623]
[1762788370826,0.29548439,105420.0,105410.0,0.14236623]
[1762788371026,0.29548439,105420.0,105410.0,0.04747803]
[1762788371420,0.29648439,105420.0,105410.0,0.04747803]
[1762788371621,0.29648439,105420.0,105410.0,0.00219803]
[1762788371822,0.30228439,105420.0,105410.0,0.00219803]
[1762788372318,0.122091,105410.0,105400.0,0.00014246]
[1762788372520,0.20060239,105410.0,105400.0,0.00234049]
[1762788372729,0.29549339,105410.0,105400.0,0.00234049]
[1762788373126,0.0282,105420.0,105410.0,0.04528]
[1762788373330,0.29648469,105420.0,105410.0,0.04747803]
[1762788373530,0.29648469,105420.0,105410.0,0.04847803]
[1762788373828,0.29548469,105420.0,105410.0,0.001]
[1762788374034,0.1220911,105410.0,105400.0,0.00114246]
[1762788374525,0.29549349,105410.0,105400.0,0.00114246]
[1762788374717,0.29549349,105410.0,105400.0,0.00014246]
[1762788374922,0.29549349,105410.0,105400.0,0.15586059]
[1762788375119,0.29549349,105410.0,105400.0,0.06096049]
[1762788375325,0.29549349,105410.0,105400.0,0.11058059]
[1762788375523,0.20060239,105410.0,105400.0,0.15586059]
[1762788375724,0.29549349,105410.0,105400.0,0.15586059]
[1762788376132,0.20060239,105410.0,105400.0,0.15586059]
[1762788376536,0.29549349,105410.0,105400.0,0.15586059]
[1762788376836,0.29549349,105410.0,105400.0,0.15686059]
[1762788377028,0.20060239,105410.0,105400.0,0.15686059]
[1762788377532,0.17340239,105410.0,105400.0,0.15686059]
[1762788377831,0.29548479,105420.0,105410.0,0.140171]
[1762788378031,0.29548479,105420.0,105410.0,0.14236903]
[1762788378626,0.20060239,105420.0,105410.0,0.14236903]
[1762788379932,0.12222166,105430.0,105420.0,0.05711]
[1762788380232,0.12222166,105430.0,105420.0,0.15419003]
[1762788380233,0.02734246,105430.0,105420.0,0.15419003]
[1762788380445,0.18714485,105430.0,105420.0,0.15419003]
[1762788380624,0.00014246,105430.0,105420.0,0.15419003]
[1762788381030,0.00014246,105430.0,105420.0,0.06968213]
[1762788381031,0.29561785,105430.0,105420.0,0.06968213]
[1762788381228,0.0272,105410.0,105400.0,0.23731337]
[1762788381433,0.20060239,105410.0,105400.0,0.2395114]
[1762788381629,0.20060239,105410.0,105400.0,0.22290936]
[1762788381937,0.20060239,105420.0,105410.0,0.139081]
[1762788382140,0.29662505,105430.0,105420.0,0.151992]
[1762788382434,0.29561785,105430.0,105420.0,0.15419003]
[1762788382638,0.12221546,105430.0,105420.0,0.05930803]
[1762788382936,0.29561785,105430.0,105420.0,0.15419003]
[1762788383331,0.29561785,105430.0,105420.0,0.05930803]
[1762788383525,0.20074485,105430.0,105420.0,0.15419003]
[1762788383939,0.00014246,105430.0,105420.0,0.15419003]
[1762788384929,0.00114246,105430.0,105420.0,0.15419003]
[1762788386837,0.00014246,105430.0,105420.0,0.15719003]
[1762788387640,0.00014246,105430.0,105420.0,0.15419003]
[1762788387832,0.00014246,105430.0,105420.0,0.15719003]
[1762788388133,0.28185749,105450.0,105440.0,0.1519741]
[1762788388338,0.29545749,105450.0,105440.0,0.15417213]
[1762788390238,0.20060239,105450.0,105440.0,0.15417213]
[1762788390838,0.17340239,105460.0,105450.0,0.1390451]
[1762788391050,0.29544459,105470.0,105460.0,0.1519561]
[1762788391236,0.29544459,105470.0,105460.0,0.00219803]
[1762788391437,0.1220461,105460.0,105450.0,0.00014246]
[1762788391632,0.30324849,105460.0,105450.0,0.00014246]
[1762788392035,0.30324849,105460.0,105450.0,2.46e-06]
[1762788392441,0.30424849,105460.0,105450.0,2.46e-06]
[1762788393240,0.90524849,105460.0,105450.0,2.46e-06]
[1762788393447,0.1217931,105430.0,105420.0,0.151988]
[1762788393747,0.1083195,105450.0,105440.0,0.02197]